{"text_format":"2","workbook":"xlsx","n_sheets":3,"sheets":["Daten","Copyright","Optionen"],"not_rendered":{"charts":0,"images":7,"macros":1,"external_links":0,"defined_names":1,"comments":0,"pivot_tables":0},"unopened":[],"bounds":{"document_bytes":16777216,"sheet_cells":100000,"run_cost":"one","rows_first":2000,"rows_last":500,"rows_between":2000,"halvings":0,"cell_chars":16384,"cell_head_chars":4096},"cells_cut":0,"cells_raw":0,"read":"whole","date_system":"1900"}

{"sheet":"Daten","index":0,"n_rows":50,"n_cols":4,"rows_kept":50,"cut":false,"hidden":false,"merged":[]}
[]
[null,"Excel-Inside Solutions"]
[null,"xls-Translator   [Eingabe]"]
[]
[]
[]
[]
[]
[]
[null,{"$f":"\"Ausgangssprache = \" &Optionen!E9","v":"Ausgangssprache = Deutsch"},null,{"$f":"\"Zielsprache = \" &Optionen!F9","v":"Zielsprache = Englisch"}]
[{"$f":"IF(B11<>\"\",ROW()-10 & \" \",\"\")","v":""}]
[{"$f":"IF(B12<>\"\",ROW()-10 & \" \",\"\")","v":""}]
[""]
[""]
[""]
[""]
[""]
[""]
[""]
[""]
[""]
[""]
[""]
[""]
[""]
[""]
[""]
[""]
[""]
[""]
[""]
[""]
[""]
[""]
[""]
[""]
[""]
[""]
[""]
[""]
[""]
[""]
[""]
[""]
[""]
[""]
[""]
[""]
[""]
[""]

{"sheet":"Copyright","index":1,"n_rows":21,"n_cols":4,"rows_kept":21,"cut":false,"hidden":false,"merged":[]}
[]
[null,"Excel-Inside Solutions"]
[null,"xls-Translator   [Copyright]"]
[]
[]
[]
[null,"Version",":","1.00 · 130610"]
[]
[null,"Contact",":","Alois Eckl"]
[null,null,null,"Grabbestraße 25"]
[null,null,null,"90427 Nürnberg"]
[null,null,null,"Germany"]
[]
[null,"Mail",":","alois.eckl@excel-inside.de"]
[null,"Web",":","www.excel-inside.de"]
[]
[]
[null,"Copyright",":","© 2013 by Excel-Inside Solutions - All rights reserved"]
[]
[null,"Hinweis",":","Das Programm verwendet Google Translate"]
[null,null,null,"zur Übersetzung: http://translate.google.de"]

{"sheet":"Optionen","index":2,"n_rows":43,"n_cols":10,"rows_kept":43,"cut":false,"hidden":false,"merged":[]}
[]
[null,"Excel-Inside Solutions"]
[null,"xls-Translator   [Optionen]"]
[]
[]
[null,"Sprachen","Kürzel",null,"Aktuell gewählte Sprachen",null,null,"Speicherkennzeichen:",null,"ja"]
[null,"Bosnisch","bs",null,"Quellsprache","Zielsprache"]
[null,"Bulgarisch","bg",null,5,6]
[null,"Chinesisch","zh-CN",null,{"$f":"INDEX(sprachen,E8)","v":"Deutsch"},{"$f":"INDEX(sprachen,F8)","v":"Englisch"}]
[null,"Dänsich","da",null,{"$f":"INDEX(B7:C43,E8,2)","v":"de"},{"$f":"INDEX(B7:C43,F8,2)","v":"en"}]
[null,"Deutsch","de"]
[null,"Englisch","en"]
[null,"Estnisch","et"]
[null,"Finnisch","fi"]
[null,"Französisch","fr"]
[null,"Griechisch","el"]
[null,"Irisch","ga"]
[null,"Islänisch","is"]
[null,"Italienisch","it"]
[null,"Japanisch","ja"]
[null,"Koreanisch","kr"]
[null,"Kroatisch","hr"]
[null,"Lateinisch","la"]
[null,"Lettisch","lv"]
[null,"Litauisch","lt"]
[null,"Niederländisch","nl"]
[null,"Norwegisch","no"]
[null,"Polnisch","po"]
[null,"Portugisisch","pt"]
[null,"Rumänisch","ro"]
[null,"Russisch","ru"]
[null,"Schwedisch","sv"]
[null,"Serbisch","sr"]
[null,"Slowakisch","sk"]
[null,"Slowenisch","sl"]
[null,"Spanisch","es"]
[null,"Thailändisch","th"]
[null,"Tschechisch","cs"]
[null,"Türkisch","tr"]
[null,"Ukrainisch","uk"]
[null,"Ungarisch","hu"]
[null,"Vietnamesisch","vi"]
[null,"Weißrussisch","be"]